bitfinex-derivatives/quotes_BTCF0:USTF0_20241025
["timestamp","ask_amount","ask_price","bid_price","bid_amount"]
[1729887103139,0.0374,66844.0,66843.0,1.27917004]
[1729887103339,0.074925,66863.0,66862.0,0.074925]
[1729887103540,0.074925,66863.0,66862.0,0.33409538]
[1729887103743,0.063,66866.0,66865.0,0.074922]
[1729887107751,0.137921,66866.0,66865.0,0.074922]
[1729887108543,0.137921,66866.0,66865.0,0.08762879]
[1729887114551,0.137921,66866.0,66858.0,0.25917038]
[1729887114751,0.3608,66859.0,66854.0,0.25917038]
[1729887114953,0.074933,66855.0,66854.0,0.25917038]
[1729887115155,0.3608,66859.0,66854.0,0.25917038]
[1729887115459,0.435729,66859.0,66858.0,0.33410038]
[1729887118360,0.435729,66859.0,66858.0,0.24500132]
[1729887123164,0.3608,66859.0,66858.0,0.24500132]
[1729887124760,0.063,66866.0,66865.0,0.074922]
[1729887124966,0.063,66866.0,66865.0,0.24499332]
[1729887125457,0.063,66866.0,66865.0,0.074922]
[1729887131964,0.063,66866.0,66865.0,0.09041571]
[1729887136058,0.137921,66866.0,66865.0,0.09041571]
[1729887146074,0.063,66866.0,66865.0,0.09041571]
[1729887146671,0.0316,66866.0,66865.0,0.09041571]
[1729887146872,0.0615,66880.0,66879.0,0.074906]
[1729887147174,0.0615,66880.0,66879.0,0.24497732]
[1729887147377,0.0615,66880.0,66879.0,0.074906]
[1729887147576,0.136405,66880.0,66879.0,0.074906]
[1729887150070,0.17694514,66880.0,66879.0,0.074906]
[1729887150774,0.074911,66876.0,66875.0,0.07491]
[1729887150974,0.074911,66876.0,66875.0,0.15994566]
[1729887151380,0.074911,66876.0,66875.0,0.52074566]
[1729887153577,0.074911,66876.0,66875.0,0.60578132]
[1729887154078,0.0319,66879.0,66875.0,0.53087132]
[1729887154278,0.106807,66879.0,66878.0,0.074907]
[1729887154867,0.14729705,66879.0,66878.0,0.074907]
[1729887156376,0.106807,66879.0,66878.0,0.074907]
[1729887156576,0.14719784,66879.0,66878.0,0.074907]
[1729887156777,0.07229084,66879.0,66878.0,0.074907]
[1729887156990,0.52168466,66895.0,66878.0,0.074907]
[1729887156991,0.36176,66895.0,66878.0,0.074907]
[1729887157286,0.0327,66888.0,66883.0,0.3608]
[1729887157470,0.04048318,66887.0,66883.0,0.3608]
[1729887157677,0.04048318,66887.0,66886.0,0.074899]
[1729887158283,0.0327,66888.0,66887.0,0.074898]
[1729887162883,0.0628,66894.0,66893.0,0.074891]
[1729887163084,0.0628,66894.0,66893.0,0.60576232]
[1729887165181,0.15066182,66894.0,66893.0,0.60576232]
[1729887165575,0.15066127,66894.0,66893.0,0.60576232]
[1729887170885,0.15066127,66894.0,66893.0,0.24496232]
[1729887171393,0.22555127,66894.0,66893.0,0.24496232]
[1729887172289,0.15066127,66894.0,66893.0,0.24496232]
[1729887173180,0.0628,66894.0,66893.0,0.24496232]
[1729887180091,0.10349811,66894.0,66893.0,0.24496232]
[1729887182593,0.10355487,66894.0,66893.0,0.24496232]
[1729887184793,0.14092487,66894.0,66893.0,0.24496232]
[1729887186106,0.21581387,66894.0,66893.0,0.074891]
[1729887186699,0.26317561,66894.0,66893.0,0.074891]
[1729887187201,0.21599391,66894.0,66893.0,0.074891]
[1729887187608,0.26350154,66894.0,66893.0,0.074891]
[1729887187791,0.21599391,66894.0,66893.0,0.074891]
[1729887187991,0.2635027,66894.0,66893.0,0.074891]
[1729887188187,0.175059,66894.0,66893.0,0.074891]
[1729887191205,0.10017,66894.0,66893.0,0.074891]
[1729887192610,0.10017,66894.0,66893.0,0.11980983]
[1729887192903,0.03737,66894.0,66893.0,0.074891]
[1729887194010,0.03737,66894.0,66893.0,0.11980983]
[1729887194503,0.03737,66894.0,66893.0,0.29830297]
[1729887194699,0.01526982,66909.0,66893.0,0.29830297]
[1729887194700,0.0308,66906.0,66905.0,0.074877]
[1729887194895,0.0308,66906.0,66905.0,0.24494832]
[1729887195096,0.0308,66906.0,66905.0,0.574877]
[1729887195795,0.0308,66906.0,66903.0,0.3608]
[1729887195997,0.074878,66904.0,66903.0,0.3608]
[1729887196194,0.074878,66904.0,66903.0,0.435679]
[1729887196425,0.074878,66904.0,66903.0,0.935679]
[1729887197506,0.074878,66904.0,66903.0,0.435679]
[1729887199006,0.074878,66904.0,66903.0,0.45128203]
[1729887199500,0.0308,66906.0,66905.0,0.074877]
[1729887199704,0.0308,66906.0,66905.0,0.24494832]
[1729887200010,0.105676,66906.0,66905.0,0.24494832]
[1729887200310,0.0308,66906.0,66905.0,0.24494832]
[1729887203302,0.07168893,66906.0,66905.0,0.24494832]
[1729887204011,0.07168893,66906.0,66905.0,0.074877]
[1729887204711,0.11909297,66906.0,66905.0,0.074877]
[1729887205810,0.11904281,66906.0,66905.0,0.074877]
[1729887208909,0.08824281,66906.0,66905.0,0.074877]
[1729887209117,0.04088893,66906.0,66905.0,0.074877]
[1729887209315,2.00088,66910.0,66905.0,0.074877]
[1729887209316,2.00088,66910.0,66905.0,0.90010878]
[1729887209615,2.0,66910.0,66909.0,0.77581564]
[1729887210012,2.0,66910.0,66909.0,0.83049779]
[1729887210314,2.0,66910.0,66909.0,1.32380838]
[1729887210513,2.0,66910.0,66909.0,1.27885779]
[1729887214711,2.0,66910.0,66909.0,1.44892911]
[1729887215315,2.0,66910.0,66909.0,1.27885779]
[1729887215517,2.0,66910.0,66909.0,1.44892911]
[1729887215718,2.0,66910.0,66909.0,1.27885779]
[1729887216423,2.0,66910.0,66909.0,1.44892911]
[1729887216720,2.0,66910.0,66909.0,1.27885779]
[1729887218412,2.0,66910.0,66909.0,1.44892911]
[1729887218617,2.0,66910.0,66909.0,1.27885779]
[1729887219619,2.0,66910.0,66909.0,0.83049779]
[1729887219822,2.0,66910.0,66909.0,1.27885779]
[1729887220820,2.0,66910.0,66909.0,0.91805779]
[1729887221117,2.0,66910.0,66909.0,1.27885779]
[1729887221617,2.0,66910.0,66909.0,1.29080779]
[1729887223916,2.0,66910.0,66909.0,0.84244779]
[1729887224117,2.0,66910.0,66909.0,1.29080779]
[1729887225313,2.0,66910.0,66909.0,1.46087911]
[1729887225717,2.0,66910.0,66909.0,1.29080779]
[1729887226117,2.0,66910.0,66909.0,0.84244779]
[1729887226317,2.0,66910.0,66909.0,1.29080779]
[1729887227126,2.0,66910.0,66909.0,0.84244779]
[1729887227327,2.0,66910.0,66909.0,0.97016779]
[1729887228912,2.0,66910.0,66909.0,0.60936779]
[1729887229116,2.0,66910.0,66909.0,0.97016779]
[1729887229329,2.0,66910.0,66909.0,1.01490776]
[1729887229518,2.0,66910.0,66909.0,0.97016779]
[1729887232915,2.0,66910.0,66909.0,0.60936779]
[1729887233127,2.0,66910.0,66909.0,0.97016779]
[1729887235224,2.0,66910.0,66909.0,0.60936779]
[1729887235528,2.0,66910.0,66909.0,1.14023911]
[1729887236233,2.0,66910.0,66909.0,1.01251911]
[1729887236529,2.0,66910.0,66909.0,1.13995911]
[1729887236732,1.903106,66910.0,66909.0,1.13995911]
[1729887236921,1.81464,66910.0,66909.0,1.13995911]
[1729887237121,1.81464,66910.0,66909.0,1.63995911]
[1729887237326,1.80265964,66910.0,66909.0,1.69965289]
[1729887238222,1.23641903,66910.0,66909.0,1.63995911]
[1729887238429,1.23641903,66910.0,66909.0,1.35951025]
[1729887238732,1.23641903,66910.0,66909.0,1.29981647]
[1729887239041,1.23641903,66910.0,66909.0,1.17237647]
[1729887239329,0.17007132,66909.0,66897.0,0.0448949]
[1729887239519,2.4962436,66910.0,66886.0,0.05982287]
[1729887239520,0.15993866,66903.0,66886.0,0.05982287]
[1729887239730,0.3608,66894.0,66892.0,0.074915]
[1729887240025,0.3608,66894.0,66893.0,0.074914]
[1729887240232,0.3608,66894.0,66891.0,0.17007132]
[1729887240233,0.08503566,66893.0,66887.0,0.50084]
[1729887240424,0.89431566,66894.0,66887.0,0.50084]
[1729887240425,0.44583566,66888.0,66887.0,0.5]
[1729887240625,0.07492,66887.0,66886.0,0.01570716]
[1729887240829,0.07492,66887.0,66882.0,0.074925]
[1729887241023,0.08503566,66883.0,66882.0,0.074925]
[1729887241223,0.17007132,66883.0,66882.0,0.074925]
[1729887241735,0.08503566,66886.0,66884.0,0.074924]
[1729887242237,0.3608,66888.0,66887.0,0.07492]
[1729887242927,0.80932,66888.0,66887.0,0.07492]
[1729887243129,0.3608,66888.0,66887.0,0.07492]
[1729887243724,1.01376739,66888.0,66881.0,0.074926]
[1729887244032,0.49032839,66882.0,66877.0,0.5]
[1729887244331,0.12952839,66878.0,66861.0,0.25905678]
[1729887244523,0.12952839,66863.0,66859.0,0.12748]
[1729887244721,0.0331,66862.0,66861.0,0.074949]
[1729887245029,0.0331,66862.0,66861.0,0.574949]
[1729887246034,0.0331,66862.0,66861.0,0.70447739]
[1729887248133,0.0331,66862.0,66861.0,0.074949]
[1729887248325,0.16262839,66862.0,66861.0,0.074949]
[1729887248634,0.52342839,66862.0,66861.0,0.074949]
[1729887249329,0.3939,66862.0,66861.0,0.074949]
[1729887250732,0.3939,66862.0,66861.0,0.33400578]
[1729887251035,0.3939,66862.0,66861.0,0.074949]
[1729887255551,0.3608,66862.0,66861.0,0.074949]
[1729887258236,0.3608,66862.0,66861.0,0.33400578]
[1729887262642,0.3608,66867.0,66866.0,0.074937]
[1729887266132,0.3608,66867.0,66866.0,0.086897]
[1729887270751,0.3608,66867.0,66866.0,0.10216795]
[1729887275457,0.3608,66867.0,66866.0,0.02723095]
[1729887276455,0.3608,66867.0,66866.0,0.10216695]
[1729887277856,0.074933,66869.0,66866.0,0.02723095]
[1729887278061,0.074933,66869.0,66867.0,0.074934]
[1729887278359,0.3608,66868.0,66867.0,0.074934]
[1729887278559,0.3608,66875.0,66867.0,0.074935]
[1729887278759,0.49032839,66881.0,66880.0,0.074921]
[1729887278760,0.36164,66881.0,66880.0,0.074921]
[1729887278962,0.3608,66881.0,66880.0,0.074921]
[1729887279168,0.3608,66881.0,66880.0,0.574921]
[1729887279374,0.3608,66881.0,66880.0,0.074921]
[1729887280262,0.3608,66881.0,66880.0,0.33397778]
[1729887281267,0.3608,66881.0,66880.0,0.83397778]
[1729887283770,0.3608,66881.0,66880.0,0.84957707]
[1729887284370,0.3608,66881.0,66880.0,0.59052029]
[1729887285466,0.3608,66881.0,66880.0,0.71776029]
[1729887289757,0.074914,66886.0,66885.0,0.074915]
[1729887289963,0.435714,66886.0,66885.0,0.074915]
[1729887292175,0.074914,66886.0,66885.0,0.074915]
[1729887292367,0.435714,66886.0,66885.0,0.074915]
[1729887294465,0.074914,66886.0,66885.0,0.074915]
[1729887294666,0.435714,66886.0,66885.0,0.074915]
[1729887299674,0.69477078,66886.0,66885.0,0.074915]
[1729887299877,0.074919,66882.0,66881.0,0.074918]
[1729887301279,0.074919,66882.0,66881.0,0.09034386]
[1729887301480,0.074923,66878.0,66877.0,0.00076]
[1729887301668,0.074933,66870.0,66869.0,0.074933]
[1729887301868,0.56526139,66870.0,66869.0,0.074933]
[1729887302475,0.61985678,66870.0,66868.0,0.01583885]
[1729887302678,0.074935,66867.0,66866.0,0.074936]
[1729887303170,0.0311,66869.0,66860.0,0.074942]
[1729887303369,0.49032839,66863.0,66860.0,0.074942]
[1729887303571,0.074942,66861.0,66860.0,0.074942]
[1729887306275,0.00084,66863.0,66860.0,0.074942]
[1729887306483,0.32395781,66870.0,66857.0,0.0325]
[1729887306684,0.12952839,66863.0,66857.0,0.0325]
[1729887307078,0.074941,66862.0,66861.0,0.074941]
[1729887309785,0.074941,66862.0,66861.0,0.574941]
[1729887311184,0.32395781,66870.0,66861.0,0.574941]
[1729887311185,0.436486,66876.0,66875.0,0.074926]
[1729887311372,0.435726,66876.0,66875.0,0.074926]
[1729887312089,0.3608,66876.0,66875.0,0.074926]
[1729887312586,0.3608,66876.0,66866.0,0.0328]
[1729887312587,0.074928,66873.0,66866.0,0.0328]
[1729887312770,0.12952839,66871.0,66866.0,0.0328]
[1729887313184,0.12952839,66871.0,66866.0,0.04863281]
[1729887313476,0.12952839,66871.0,66870.0,0.074932]
[1729887314280,0.56525339,66876.0,66875.0,0.074926]
[1729887314481,0.435725,66876.0,66875.0,0.074926]
[1729887317782,0.074925,66876.0,66875.0,0.074926]
[1729887319495,0.3608,66879.0,66878.0,0.074923]
[1729887319792,0.074915,66885.0,66878.0,0.25905678]
[1729887320087,0.074915,66885.0,66879.0,0.0319]
[1729887320887,0.074915,66885.0,66884.0,0.074916]
[1729887323683,0.435708,66892.0,66891.0,0.074908]
[1729887323895,0.435708,66892.0,66891.0,0.33396478]
[1729887324295,0.435708,66892.0,66891.0,0.074908]
[1729887325595,0.0633,66904.0,66891.0,0.33396478]
[1729887325792,0.11229957,66899.0,66898.0,0.074899]
[1729887325996,0.074899,66899.0,66898.0,0.074899]
[1729887326892,0.12952839,66898.0,66892.0,0.0328]
[1729887327087,0.20443439,66893.0,66892.0,0.0328]
[1729887327296,0.074907,66892.0,66891.0,0.01570235]
[1729887327486,0.074908,66891.0,66890.0,0.074909]
[1729887327685,0.074911,66889.0,66886.0,0.435713]
[1729887327902,0.074911,66889.0,66886.0,0.3608]
[1729887328095,0.074911,66889.0,66888.0,0.074912]
[1729887329095,0.074913,66887.0,66886.0,0.37632859]
[1729887329394,0.074918,66882.0,66881.0,0.0328]
[1729887331406,0.074919,66881.0,66875.0,0.074926]
[1729887331612,0.074921,66880.0,66879.0,0.01590631]
[1729887331796,0.12952839,66879.0,66875.0,0.074926]
[1729887331996,0.074924,66877.0,66875.0,0.074926]
[1729887332194,0.074924,66877.0,66876.0,0.074925]
[1729887334006,0.12952839,66879.0,66872.0,0.3932]
[1729887334303,0.20445639,66873.0,66872.0,0.3608]
[1729887336911,0.074928,66873.0,66872.0,0.3608]
[1729887337105,0.3608,66884.0,66879.0,0.07492]
[1729887339017,0.074922,66880.0,66879.0,0.07492]
[1729887339716,0.3608,66884.0,66872.0,0.3608]
[1729887339918,0.074924,66877.0,66875.0,0.074926]
[1729887340122,0.074923,66878.0,66875.0,0.074926]
[1729887340616,0.074923,66878.0,66876.0,0.074925]
[1729887342418,0.074924,66877.0,66876.0,0.074925]
[1729887344424,0.12952839,66876.0,66873.0,0.001]
[1729887344626,0.12952839,66876.0,66872.0,0.37610194]
[1729887344922,0.074928,66873.0,66872.0,0.3608]
[1729887345520,0.20445639,66873.0,66872.0,0.3608]
[1729887352221,0.074924,66877.0,66874.0,0.074927]
[1729887352531,0.074918,66883.0,66876.0,0.25905678]
[1729887352833,0.074919,66882.0,66881.0,0.074919]
[1729887353823,0.3608,66885.0,66878.0,0.0311]
[1729887354022,0.074921,66880.0,66878.0,0.0311]
[1729887354518,0.074922,66879.0,66878.0,0.106023]
[1729887354724,0.12952839,66878.0,66874.0,0.074927]
[1729887354931,0.12952839,66874.0,66872.0,0.3608]
[1729887355132,0.074928,66873.0,66872.0,0.3608]
[1729887357634,0.074928,66873.0,66872.0,0.37676321]
[1729887359634,0.074928,66873.0,66872.0,0.45169321]
[1729887366237,0.10943363,66873.0,66872.0,0.45169321]
[1729887366634,0.10943363,66873.0,66869.0,0.062]
[1729887366635,0.03450563,66873.0,66869.0,0.062]
[1729887366842,0.074936,66867.0,66866.0,0.075816]
[1729887367029,0.23897002,66867.0,66866.0,0.074936]
[1729887367633,0.23877715,66867.0,66866.0,0.074936]
[1729887368038,0.23877715,66867.0,66866.0,0.09087786]
[1729887368430,0.36830554,66867.0,66866.0,0.09087786]
[1729887368632,0.40815492,66867.0,66866.0,0.01594186]
[1729887368837,0.33321892,66867.0,66865.0,0.074938]
[1729887369140,0.074937,66866.0,66865.0,0.074938]
[1729887372429,0.074938,66865.0,66864.0,0.01550198]
[1729887372642,0.25905678,66867.0,66862.0,0.3608]
[1729887372643,0.07494,66863.0,66862.0,0.3608]
[1729887372841,0.20446839,66863.0,66862.0,0.3608]
[1729887373239,0.20446839,66863.0,66862.0,0.37614198]
[1729887373845,0.20446839,66863.0,66862.0,0.45108298]
[1729887374145,0.20446739,66864.0,66863.0,0.07494]
[1729887374346,0.074939,66864.0,66863.0,0.07494]
[1729887375545,0.074935,66868.0,66865.0,0.074937]
[1729887375746,0.074936,66866.0,66865.0,0.074937]
[1729887375947,0.3608,66873.0,66862.0,0.63519876]
[1729887376243,0.074932,66870.0,66867.0,0.074934]
[1729887376440,0.3608,66873.0,66867.0,0.074934]
[1729887376636,0.074934,66868.0,66867.0,0.074934]
[1729887378254,0.074935,66867.0,66863.0,0.074939]
[1729887378446,0.074935,66867.0,66862.0,0.37614198]
[1729887378847,0.074935,66867.0,66865.0,0.074937]
[1729887381350,0.074936,66866.0,66865.0,0.074937]
[1729887389352,0.074939,66863.0,66862.0,0.0449276]
[1729887389554,0.25905678,66865.0,66854.0,0.3608]
[1729887389555,0.074948,66855.0,66854.0,0.3608]
[1729887389757,0.20447639,66855.0,66854.0,0.3608]
[1729887390053,0.22221639,66855.0,66854.0,0.3608]
[1729887391463,0.074951,66852.0,66851.0,0.0665]
[1729887391651,0.20447939,66852.0,66851.0,0.0665]
[1729887393845,0.20447939,66852.0,66851.0,0.08212595]
[1729887397862,0.20447939,66852.0,66851.0,0.58212595]
[1729887398559,0.65323939,66852.0,66839.0,0.0449276]
[1729887398744,0.20449139,66841.0,66835.0,0.0699]
[1729887398952,0.20449139,66841.0,66837.0,0.074967]
[1729887399260,0.20449139,66841.0,66839.0,0.074965]
[1729887399554,0.074955,66849.0,66845.0,0.074958]
[1729887399759,0.3608,66853.0,66844.0,0.12952839]
[1729887399760,0.074953,66850.0,66844.0,0.12952839]
[1729887400357,0.074953,66850.0,66848.0,0.074955]
[1729887400749,0.074953,66850.0,66844.0,0.12952839]
[1729887400750,0.12952839,66849.0,66844.0,0.07496]
[1729887401258,0.12952839,66849.0,66840.0,0.3608]
[1729887401458,0.074959,66846.0,66845.0,0.074957]
[1729887403654,0.12952839,66849.0,66844.0,0.074954]
[1729887403655,0.074951,66847.0,66844.0,0.074954]
[1729887404757,0.25905678,66854.0,66845.0,0.074953]
[1729887404958,0.074952,66846.0,66845.0,0.074953]
[1729887406962,0.074954,66845.0,66842.0,0.12952839]
[1729887407163,0.074954,66845.0,66842.0,0.20448439]
[1729887407668,0.074954,66845.0,66843.0,0.074955]
[1729887408768,0.074954,66845.0,66844.0,0.074954]
[1729887414566,0.074954,66845.0,66844.0,0.435754]
[1729887416567,0.074954,66845.0,66844.0,0.3608]
[1729887416767,0.20448239,66845.0,66844.0,0.3608]
[1729887416965,0.074954,66845.0,66844.0,0.3608]
[1729887417166,0.074954,66845.0,66843.0,0.435755]
[1729887417368,0.12952839,66854.0,66843.0,0.435755]
[1729887417369,0.12952839,66854.0,66845.0,0.074952]
[1729887417571,0.074952,66847.0,66845.0,0.074952]
[1729887418175,0.3608,66857.0,66844.0,0.51811356]
[1729887418468,0.3608,66857.0,66843.0,0.3608]
[1729887418469,0.074939,66858.0,66854.0,0.25905678]
[1729887418666,0.36168,66863.0,66858.0,0.074937]
[1729887418667,0.074935,66861.0,66858.0,0.074937]
[1729887418968,0.3608,66863.0,66858.0,0.074937]
[1729887419165,0.074937,66860.0,66858.0,0.074937]
[1729887419361,0.074937,66859.0,66855.0,0.0709]
[1729887420265,0.074939,66858.0,66855.0,0.0709]
[1729887421373,0.3608,66863.0,66855.0,0.32995678]
[1729887421569,0.074929,66866.0,66863.0,0.074933]
[1729887421764,0.074926,66869.0,66868.0,0.074926]
[1729887421974,0.074921,66873.0,66872.0,0.25905678]
[1729887422676,0.074921,66873.0,66871.0,0.068]
[1729887422677,0.074922,66872.0,66871.0,0.068]
[1729887422870,0.074922,66872.0,66864.0,0.3608]
[1729887422871,0.12952839,66874.0,66864.0,0.3608]
[1729887423071,0.12952839,66864.0,66862.0,0.0343]
[1729887423271,0.12952839,66864.0,66859.0,0.12564]
[1729887423272,0.074936,66860.0,66859.0,0.12564]
[1729887423778,0.20446539,66859.0,66858.0,0.3608]
[1729887425270,0.074937,66859.0,66858.0,0.3608]
[1729887426777,0.074936,66860.0,66858.0,0.3608]
[1729887426968,0.12952839,66861.0,66858.0,0.3608]
[1729887427273,0.20446539,66859.0,66858.0,0.3608]
[1729887427474,0.074946,66851.0,66850.0,0.3608]
[1729887427674,0.12952839,66855.0,66848.0,0.074948]
[1729887427864,0.074951,66847.0,66844.0,0.45122466]
[1729887428066,0.074951,66847.0,66844.0,0.37627066]
[1729887428264,0.12952839,66850.0,66845.0,0.074952]
[1729887428265,0.074952,66846.0,66845.0,0.074952]
[1729887428464,0.074952,66846.0,66844.0,0.37627066]
[1729887428465,0.074953,66845.0,66844.0,0.37627066]
[1729887430778,0.074953,66845.0,66844.0,0.3608]
[1729887435472,0.074949,66849.0,66847.0,0.07495]
[1729887435672,0.074949,66849.0,66844.0,0.3608]
[1729887435673,0.20032839,66854.0,66848.0,0.074949]
[1729887435873,0.074948,66850.0,66848.0,0.074949]
[1729887436882,0.20447639,66850.0,66848.0,0.074949]
[1729887437784,0.074948,66849.0,66848.0,0.074949]
[1729887437980,0.145744,66854.0,66851.0,0.074946]
[1729887438176,0.074944,66853.0,66852.0,0.3608]
[1729887443385,0.12952839,66859.0,66852.0,0.3608]
[1729887443683,0.074931,66865.0,66861.0,0.074935]
[1729887443894,0.074933,66863.0,66862.0,0.0353]
[1729887444183,0.12952839,66873.0,66862.0,0.0353]
[1729887444388,0.07493,66866.0,66865.0,0.3608]
[1729887445990,0.07493,66866.0,66865.0,0.69478678]
[1729887446481,0.07493,66866.0,66865.0,0.43573]
[1729887446887,0.07493,66866.0,66865.0,0.3608]
[1729887448981,0.12952839,66870.0,66865.0,0.3608]
[1729887449184,0.0749,66892.0,66869.0,0.074925]
[1729887449185,0.074922,66873.0,66869.0,0.074925]
[1729887449485,0.12952839,66876.0,66869.0,0.074925]
[1729887449486,0.074923,66872.0,66869.0,0.074925]
[1729887449782,0.12952839,66876.0,66869.0,0.074925]
[1729887449979,0.12952839,66871.0,66865.0,0.3608]
[1729887450177,0.074929,66866.0,66865.0,0.3608]
[1729887456490,0.074929,66868.0,66866.0,0.07493]
[1729887456988,0.074929,66868.0,66865.0,0.3608]
[1729887457801,0.074929,66868.0,66865.0,0.435731]
[1729887458391,0.12952839,66866.0,66865.0,0.3608]
[1729887458596,0.20445939,66866.0,66865.0,0.3608]
[1729887458899,0.20445939,66866.0,66858.0,0.3608]
[1729887458900,0.074938,66859.0,66858.0,0.3608]
[1729887459088,0.33399478,66859.0,66858.0,0.3608]
[1729887466508,0.36881928,66859.0,66858.0,0.3608]
[1729887467907,0.38453958,66859.0,66858.0,0.3608]
[1729887469601,0.25501119,66859.0,66858.0,0.3608]
[1729887473499,0.34971508,66859.0,66858.0,0.3608]
[1729887480411,0.17571416,66859.0,66858.0,0.3608]
[1729887481525,0.25087161,66859.0,66858.0,0.3608]
[1729887483114,0.25102073,66859.0,66858.0,0.3608]
[1729887483311,0.08505586,66858.0,66855.0,0.3608]
[1729887483610,0.08505586,66856.0,66855.0,0.3608]
[1729887483820,0.19484512,66856.0,66855.0,0.3608]
[1729887488112,0.23646843,66856.0,66855.0,0.3608]
[1729887488818,0.15999786,66856.0,66855.0,0.3608]
[1729887494014,0.3616,66865.0,66855.0,0.44585586]
[1729887494212,0.3608,66873.0,66864.0,0.08505586]
[1729887494213,0.36156,66873.0,66864.0,0.08505586]
[1729887494418,0.03624933,66872.0,66867.0,0.07493]
[1729887494618,0.074928,66870.0,66865.0,0.0357]
[1729887494924,0.3608,66873.0,66865.0,0.0357]
[1729887495114,0.0362881,66872.0,66865.0,0.0357]
[1729887495424,0.074928,66869.0,66866.0,0.074931]
[1729887495627,0.08505586,66867.0,66866.0,0.074931]
[1729887495816,0.08505586,66867.0,66866.0,0.111131]
[1729887496731,0.3608,66873.0,66866.0,0.111131]
[1729887496732,0.3608,66873.0,66868.0,0.074928]
[1729887497016,0.3608,66873.0,66866.0,0.0362]
[1729887497017,0.3608,66873.0,66872.0,0.15997986]
[1729887497222,0.01529841,66881.0,66872.0,0.08505586]
[1729887497410,0.08505586,66883.0,66869.0,0.0344]
[1729887497411,0.08505586,66879.0,66876.0,0.435719]
[1729887497613,0.08505586,66879.0,66876.0,0.3608]
[1729887497814,0.08505586,66879.0,66877.0,0.074919]
[1729887498312,0.12956075,66879.0,66877.0,0.074919]
[1729887499721,0.12956075,66879.0,66876.0,0.3608]
[1729887499920,0.12956075,66884.0,66880.0,0.074915]
[1729887500222,0.12956075,66884.0,66881.0,0.08256]
[1729887501319,0.20447175,66884.0,66881.0,0.08256]
[1729887501523,0.12956075,66884.0,66881.0,0.08256]
[1729887501720,0.01774,66883.0,66881.0,0.08256]
[1729887502522,0.01774,66883.0,66882.0,0.0375]
[1729887503732,0.14302951,66883.0,66882.0,0.0375]
[1729887504627,0.21794551,66883.0,66882.0,0.0375]
[1729887504829,0.074917,66882.0,66881.0,0.01196]
[1729887505024,0.20020651,66882.0,66881.0,0.01196]
[1729887505224,0.15265044,66882.0,66881.0,0.01196]
[1729887506323,0.28221119,66882.0,66881.0,0.01196]
[1729887508823,0.28239341,66882.0,66881.0,0.01196]
[1729887510631,0.44856,66881.0,66860.0,0.3608]
[1729887510826,0.45652408,66882.0,66860.0,0.3608]
[1729887510827,0.20450075,66861.0,66860.0,0.3608]
[1729887511138,0.28241641,66861.0,66860.0,0.3608]
[1729887511935,0.20450075,66861.0,66860.0,0.3608]
[1729887512930,0.074947,66855.0,66850.0,0.435753]
[1729887513133,0.12956075,66851.0,66850.0,0.435753]
[1729887513336,0.2591215,66851.0,66850.0,0.435753]
[1729887517029,0.3340725,66851.0,66850.0,0.435753]
[1729887518738,0.12956075,66851.0,66850.0,0.435753]
[1729887518939,0.074949,66853.0,66851.0,0.074951]
[1729887519125,0.12956075,66854.0,66851.0,0.074951]
[1729887519328,0.07495,66852.0,66851.0,0.074951]
[1729887519543,0.07495,66852.0,66851.0,0.574951]
[1729887521437,0.07495,66852.0,66851.0,0.074951]
[1729887521838,0.07495,66852.0,66851.0,0.574951]
[1729887524832,0.20451075,66852.0,66851.0,0.574951]
[1729887526431,0.20451075,66852.0,66851.0,0.935751]
[1729887528256,0.12956075,66852.0,66848.0,0.01564338]
[1729887528454,0.3608,66856.0,66845.0,0.073]
[1729887528455,0.074959,66847.0,66845.0,0.073]
[1729887529349,0.074959,66847.0,66845.0,0.14796]
[1729887529550,0.074959,66847.0,66846.0,0.074959]
[1729887531652,0.074959,66847.0,66845.0,0.073]
[1729887531859,0.074959,66847.0,66845.0,0.147959]
[1729887532156,0.074959,66847.0,66846.0,0.074959]
[1729887533250,0.074964,66842.0,66838.0,0.074968]
[1729887533453,0.12956075,66838.0,66835.0,0.03508]
[1729887533651,0.12956075,66838.0,66837.0,0.074969]
[1729887534761,0.20452875,66838.0,66831.0,0.5]
[1729887534962,0.12956075,66833.0,66832.0,0.074975]
[1729887536359,0.12956075,66836.0,66835.0,0.074972]
[1729887538953,0.12956075,66836.0,66835.0,0.086932]
[1729887540453,0.12956075,66837.0,66836.0,0.074971]
[1729887541170,0.20452975,66837.0,66836.0,0.074971]
[1729887542458,0.12956075,66837.0,66836.0,0.074971]
[1729887543458,0.074971,66836.0,66835.0,0.01196]
[1729887543763,0.20453175,66836.0,66835.0,0.01196]
[1729887544668,0.20453175,66836.0,66822.0,0.0361]
[1729887544669,0.12956075,66835.0,66822.0,0.0361]
[1729887544964,0.7829725,66836.0,66821.0,0.3608]
[1729887544965,0.20454675,66822.0,66821.0,0.3608]
[1729887546164,0.12956075,66822.0,66821.0,0.074987]
[1729887549867,0.12956075,66822.0,66817.0,0.51535984]
[1729887550053,0.12956075,66818.0,66817.0,0.59035184]
[1729887550665,0.12956075,66818.0,66817.0,0.09035184]
[1729887551170,0.2591215,66818.0,66817.0,0.09035184]
[1729887551362,0.2591215,66818.0,66817.0,0.074992]
[1729887552572,0.074994,66816.0,66815.0,0.3608]
[1729887552762,0.074998,66813.0,66812.0,0.074999]
[1729887552964,0.20455875,66813.0,66812.0,0.074999]
[1729887554071,0.12956075,66813.0,66812.0,0.074999]
[1729887554270,0.12956075,66813.0,66811.0,0.01544637]
[1729887554570,0.075,66811.0,66808.0,0.075003]
[1729887554772,0.12956075,66809.0,66808.0,0.075003]
[1729887555469,0.12956075,66808.0,66806.0,0.075005]
[1729887555674,0.12956075,66807.0,66806.0,0.075005]
[1729887557373,0.3608,66817.0,66805.0,0.2591215]
[1729887557558,0.12956075,66816.0,66815.0,0.074995]